fUST/lending_fUST_20250605
["ID","MTS","AMOUNT","RATE_DAILY","PERIOD"]
[364358513,1749079841010,-1015.28,0.00018812,2]
[364358515,1749079841020,-440.0,0.00018813,2]
[364358517,1749079841030,-627.79,0.00018813,2]
[364358519,1749079841041,-1317.35,0.00018813,2]
[364358521,1749079841052,-965.7,0.00018813,2]
[364358523,1749079841064,-440.0,0.00018813,2]
[364358525,1749079841076,-575.21,0.00018813,2]
[364358527,1749079841088,-440.0,0.00018813,2]
[364358529,1749079841099,-526.9,0.00018813,2]
[364358531,1749079841111,-440.0,0.00018813,2]
[364358534,1749079841124,-440.0,0.00018813,2]
[364358536,1749079841136,-440.0,0.00018813,2]
[364358538,1749079841148,-440.0,0.00018813,2]
[364358540,1749079841161,-440.0,0.00018813,2]
[364358542,1749079841172,-440.0,0.00018813,2]
[364358544,1749079841182,-440.0,0.00018813,2]
[364358546,1749079841192,-506.35,0.00018813,2]
[364358548,1749079841202,-337.22,0.00018813,2]
[364358550,1749079841213,-440.0,0.00018813,2]
[364358553,1749079841225,-374.52,0.00018814,2]
[364358555,1749079841238,-440.0,0.00018814,2]
[364358557,1749079841250,-440.0,0.00018814,2]
[364358559,1749079841262,-500.0,0.00018865,2]
[364358561,1749079841272,-4846.5100487,0.00018866,2]
[364358563,1749079841282,-1091.90353123,0.00018866,2]
[364358565,1749079841294,-320.87790184,0.000189,2]
[364358567,1749079841304,-359.86,0.00019079,3]
[364358570,1749079841317,-1027.47,0.00019086,2]
[364358572,1749079841327,-440.0,0.00019086,2]
[364358574,1749079841337,-1419.71,0.00019086,2]
[364358575,1749079841347,-260.0,0.00019086,2]
[364358578,1749079841357,-497.98,0.00019086,2]
[364358580,1749079841368,-440.0,0.00019086,2]
[364358582,1749079841379,-440.0,0.00019086,2]
[364358584,1749079841389,-1015.28,0.00019086,2]
[364358586,1749079841400,-440.0,0.00019087,2]
[364358588,1749079841410,-627.79,0.00019087,2]
[364358590,1749079841421,-1317.35,0.00019087,2]
[364358592,1749079841431,-965.7,0.00019087,2]
[364358594,1749079841442,-440.0,0.00019087,2]
[364358596,1749079841452,-575.21,0.00019087,2]
[364358598,1749079841462,-440.0,0.00019087,2]
[364358600,1749079841473,-526.9,0.00019087,2]
[364358602,1749079841483,-440.0,0.00019087,2]
[364358604,1749079841494,-440.0,0.00019087,2]
[364358606,1749079841505,-440.0,0.00019087,2]
[364358608,1749079841516,-440.0,0.00019087,2]
[364358610,1749079841527,-185.76972603,0.00019087,2]
[364358612,1749079841538,-440.0,0.00019087,2]
[364358614,1749079841548,-440.0,0.00019087,2]
[364358616,1749079841559,-506.35,0.00019087,2]
[364358618,1749079841569,-440.0,0.00019087,2]
[364358620,1749079841580,-440.0,0.00019088,2]
[364358622,1749079841591,-440.0,0.00019088,2]
[364358624,1749079841601,-1091.90353123,0.00019107,2]
[364358626,1749079841612,-440.0,0.00019178,2]
[364358628,1749079841622,-440.0,0.00019178,2]
[364358631,1749079841634,-440.0,0.00019178,2]
[364358633,1749079841645,-440.0,0.00019178,2]
[364358635,1749079841656,-440.0,0.00019178,2]
[364358637,1749079841667,-440.0,0.00019178,2]
[364358639,1749079841678,-440.0,0.00019178,2]
[364358641,1749079841689,-440.0,0.00019178,2]
[364358643,1749079841699,-211.376761,0.00019178,2]
[364358645,1749079841710,-1091.90353123,0.00019348,2]
[364358647,1749079841721,-1027.47,0.0001936,2]
[364358649,1749079841731,-440.0,0.0001936,2]
[364358651,1749079841742,-1419.71,0.0001936,2]
[364358653,1749079841755,-497.98,0.0001936,2]
[364358655,1749079841766,-440.0,0.0001936,2]
[364358657,1749079841776,-440.0,0.0001936,2]
[364358660,1749079841787,-1015.28,0.0001936,2]
[364358661,1749079841799,-440.0,0.00019361,2]
[364358663,1749079841810,-627.79,0.00019361,2]
[364358665,1749079841822,-1317.35,0.00019361,2]
[364358668,1749079841834,-965.7,0.00019361,2]
[364358670,1749079841845,-440.0,0.00019361,2]
[364358672,1749079841855,-575.21,0.00019361,2]
[364358674,1749079841866,-440.0,0.00019361,2]
[364358676,1749079841876,-526.9,0.00019361,2]
[364358678,1749079841886,-484.8,0.00019361,2]
[364358680,1749079841897,-440.0,0.00019361,2]
[364358682,1749079841907,-440.0,0.00019361,2]
[364358684,1749079841918,-316.57553917,0.00019361,2]
[364358686,1749079841929,-440.0,0.00019361,2]
[364358688,1749079841940,-440.0,0.00019361,2]
[364358690,1749079841950,-506.35,0.00019361,2]
[364358692,1749079841961,-440.0,0.00019361,2]
[364358694,1749079841971,-440.0,0.00019362,2]
[364358696,1749079841981,-440.0,0.00019362,2]
[364358698,1749079841990,-440.0,0.00019362,2]
[364358700,1749079842001,-167.39271525,0.00019419,2]
[364358702,1749079842010,-180.9251505,0.00019569,2]
[364358718,1749079842154,-1091.90353123,0.0001959,2]
[364358721,1749079842169,-1027.47,0.00019634,2]
[364358723,1749079842178,-440.0,0.00019634,2]
[364358724,1749079842187,-1419.71,0.00019634,2]
[364358726,1749079842197,-497.98,0.00019634,2]
[364358728,1749079842205,-440.0,0.00019634,2]
[364358730,1749079842215,-440.0,0.00019634,2]
[364358732,1749079842224,-1015.28,0.00019634,2]
[364358734,1749079842234,-440.0,0.00019635,2]
[364358736,1749079842243,-627.79,0.00019635,2]
[364358738,1749079842252,-1317.35,0.00019635,2]
[364358740,1749079842261,-965.7,0.00019635,2]
[364358742,1749079842270,-440.0,0.00019635,2]
[364358744,1749079842279,-575.21,0.00019635,2]
[364358746,1749079842288,-440.0,0.00019635,2]
[364358748,1749079842297,-526.9,0.00019635,2]
[364358750,1749079842306,-440.0,0.00019635,2]
[364358752,1749079842315,-440.0,0.00019635,2]
[364358754,1749079842324,-440.0,0.00019635,2]
[364358755,1749079842334,-440.0,0.00019635,2]
[364358756,1749079842343,-506.35,0.00019635,2]
[364358757,1749079842352,-440.0,0.00019635,2]
[364358758,1749079842361,-440.0,0.00019636,2]
[364358759,1749079842371,-191.04640534,0.00019636,2]
[364358760,1749079842380,-440.0,0.00019636,2]
[364358761,1749079842390,-240.51169097,0.00019654,2]
[364358762,1749079842399,-450.0,0.00019726,2]
[364358763,1749079842408,-488.88641127,0.00019726,2]
[364358764,1749079842418,-1091.90353123,0.00019831,2]
[364358765,1749079842427,-176.014,0.00019845,2]
[364358766,1749079842436,-178.70165561,0.00019845,2]
[364358767,1749079842446,-160.0,0.00019895,2]
[364358769,1749079842455,-229.45591648,0.00019895,2]
[364358771,1749079842465,-160.0,0.00019895,2]
[364358773,1749079842475,-160.0,0.00019895,2]
[364358775,1749079842485,-160.0,0.00019895,2]
[364358777,1749079842494,-160.0,0.00019895,2]
[364358779,1749079842503,-1027.47,0.00019908,2]
[364358781,1749079842512,-440.0,0.00019908,2]
[364358783,1749079842522,-1419.71,0.00019908,2]
[364358785,1749079842531,-497.98,0.00019908,2]
[364358787,1749079842539,-440.0,0.00019908,2]
[364358789,1749079842549,-440.0,0.00019908,2]
[364358791,1749079842558,-1015.28,0.00019908,2]
[364358793,1749079842568,-440.0,0.00019909,2]
[364358795,1749079842577,-627.79,0.00019909,2]
[364358797,1749079842586,-1317.35,0.00019909,2]
[364358799,1749079842595,-965.7,0.00019909,2]
[364358801,1749079842602,-440.0,0.00019909,2]
[364358803,1749079842609,-575.21,0.00019909,2]
[364358805,1749079842616,-440.0,0.00019909,2]
[364358807,1749079842624,-526.9,0.00019909,2]
[364358809,1749079842633,-440.0,0.00019909,2]
[364358811,1749079842643,-440.0,0.00019909,2]
[364358813,1749079842652,-440.0,0.00019909,2]
[364358815,1749079842662,-440.0,0.00019909,2]
[364358817,1749079842671,-506.35,0.00019909,2]
[364358819,1749079842680,-284.84,0.00019909,2]
[364358821,1749079842689,-440.0,0.0001991,2]
[364358823,1749079842699,-493.67,0.0001991,2]
[364358825,1749079842708,-151.0,0.0002,2]
[364358826,1749079842717,-1300.0,0.00020068,2]
[364358828,1749079842726,-1091.90353123,0.00020072,2]
[364358831,1749079842735,-1027.47,0.00020182,2]
[364358833,1749079842745,-440.0,0.00020182,2]
[364358835,1749079842757,-1419.71,0.00020182,2]
[364358836,1749079842767,-497.98,0.00020182,2]
[364358838,1749079842776,-440.0,0.00020182,2]
[364358840,1749079842785,-440.0,0.00020182,2]
[364358843,1749079842795,-1015.28,0.00020182,2]
[364358845,1749079842804,-440.0,0.00020183,2]
[364358847,1749079842814,-627.79,0.00020183,2]
[364358849,1749079842824,-1317.35,0.00020183,2]
[364358851,1749079842834,-965.7,0.00020183,2]
[364358852,1749079842843,-440.0,0.00020183,2]
[364358854,1749079842852,-575.21,0.00020183,2]
[364358857,1749079842863,-440.0,0.00020183,2]
[364358859,1749079842873,-526.9,0.00020183,2]
[364358861,1749079842883,-440.0,0.00020183,2]
[364358863,1749079842892,-440.0,0.00020183,2]
[364358865,1749079842901,-440.0,0.00020183,2]
[364358867,1749079842910,-440.0,0.00020183,2]
[364358869,1749079842919,-506.35,0.00020183,2]
[364358871,1749079842929,-440.0,0.00020184,2]
[364358873,1749079842938,-288.834457,0.00020187,2]
[364358875,1749079842947,-1091.90353123,0.00020314,3]
[364358876,1749079842956,-151.0,0.00020314,2]
[364358879,1749079842965,-1027.47,0.00020456,2]
[364358880,1749079842975,-440.0,0.00020456,2]
[364358882,1749079842983,-1419.71,0.00020456,2]
[364358884,1749079842992,-497.98,0.00020456,2]
[364358886,1749079843002,-440.0,0.00020456,2]
[364358888,1749079843012,-440.0,0.00020456,2]
[364358891,1749079843022,-1015.28,0.00020456,2]
[364358893,1749079843031,-440.0,0.00020457,2]
[364358896,1749079843040,-627.79,0.00020457,2]
[364358899,1749079843051,-1317.35,0.00020457,2]
[364358901,1749079843060,-965.7,0.00020457,2]
[364358903,1749079843070,-440.0,0.00020457,2]
[364358905,1749079843080,-575.21,0.00020457,2]
[364358907,1749079843089,-440.0,0.00020457,2]
[364358909,1749079843098,-526.9,0.00020457,2]
[364358911,1749079843107,-440.0,0.00020457,2]
[364358913,1749079843116,-440.0,0.00020457,2]
[364358915,1749079843125,-440.0,0.00020457,2]
[364358917,1749079843135,-440.0,0.00020457,2]
[364358919,1749079843144,-506.35,0.00020457,2]
[364358921,1749079843154,-440.0,0.00020458,2]
[364358923,1749079843164,-466.0,0.00020472,2]
[364358925,1749079843173,-1091.90353123,0.00020555,3]
[364358927,1749079843183,-167.39271525,0.00020593,2]
[364358929,1749079843192,-1238.32,0.000206,2]
[364358931,1749079843201,-910.39,0.000206,2]
[364358933,1749079843210,-1027.47,0.0002073,2]
[364358935,1749079843219,-440.0,0.0002073,2]
[364358937,1749079843229,-1419.71,0.0002073,2]
[364358939,1749079843238,-497.98,0.0002073,2]
[364358941,1749079843247,-440.0,0.0002073,2]
[364358945,1749079843257,-440.0,0.0002073,2]
[364358947,1749079843266,-1015.28,0.0002073,2]
[364358948,1749079843275,-440.0,0.00020731,2]
[364358950,1749079843284,-627.79,0.00020731,2]
[364358952,1749079843293,-1317.35,0.00020731,2]
[364358954,1749079843303,-965.7,0.00020731,2]
[364358956,1749079843312,-440.0,0.00020731,2]
[364358959,1749079843321,-575.21,0.00020731,2]
[364358960,1749079843330,-440.0,0.00020731,2]
[364358962,1749079843340,-526.9,0.00020731,2]
[364358965,1749079843349,-440.0,0.00020731,2]
[364358967,1749079843359,-440.0,0.00020731,2]
[364358968,1749079843368,-354.2727045,0.00020731,2]
[364358971,1749079843378,-440.0,0.00020731,2]
[364358972,1749079843388,-506.35,0.00020731,2]
[364358975,1749079843397,-440.0,0.00020732,2]
[364358977,1749079843406,-1091.90353123,0.00020797,4]
[364358978,1749079843415,-1027.47,0.00021004,2]
[364358980,1749079843425,-440.0,0.00021004,2]
[364358982,1749079843434,-1419.71,0.00021004,2]
[364358984,1749079843443,-497.98,0.00021004,2]
[364358987,1749079843452,-440.0,0.00021004,2]
[364358989,1749079843462,-440.0,0.00021004,2]
[364358991,1749079843471,-1015.28,0.00021004,2]
[364358993,1749079843481,-440.0,0.00021005,2]
[364358995,1749079843491,-627.79,0.00021005,2]
[364358997,1749079843500,-1317.35,0.00021005,2]
[364358999,1749079843509,-965.7,0.00021005,2]
[364359001,1749079843519,-440.0,0.00021005,2]
[364359003,1749079843528,-575.21,0.00021005,2]
[364359005,1749079843537,-440.0,0.00021005,2]
[364359007,1749079843546,-526.9,0.00021005,2]
[364359009,1749079843555,-578.87271069,0.00021005,2]
[364359011,1749079843565,-440.0,0.00021005,2]
[364359013,1749079843579,-440.0,0.00021005,2]
[364359015,1749079843588,-506.35,0.00021005,2]
[364359017,1749079843598,-440.0,0.00021006,2]
[364359019,1749079843607,-1091.90353123,0.00021038,4]
[364359021,1749079843617,-240.51169097,0.00021141,2]
[364359023,1749079843626,-1300.0,0.00021164,2]
[364359025,1749079843636,-1027.47,0.00021278,2]
[364359027,1749079843646,-440.0,0.00021278,2]
[364359029,1749079843655,-1419.71,0.00021278,2]
[364359032,1749079843665,-497.98,0.00021278,2]
[364359035,1749079843674,-440.0,0.00021278,2]
[364359038,1749079843684,-440.0,0.00021278,2]
[364359041,1749079843693,-1015.28,0.00021278,2]
[364359044,1749079843706,-440.0,0.00021279,2]
[364359046,1749079843715,-627.79,0.00021279,2]
[364359048,1749079843724,-1317.35,0.00021279,2]
[364359050,1749079843733,-965.7,0.00021279,2]
[364359052,1749079843743,-575.21,0.00021279,2]
[364359054,1749079843755,-440.0,0.00021279,2]
[364359056,1749079843764,-526.9,0.00021279,2]
[364359058,1749079843774,-440.0,0.00021279,2]
[364359060,1749079843783,-506.35,0.00021279,2]
[364359062,1749079843792,-1091.90353123,0.00021279,5]
[364359064,1749079843802,-440.0,0.0002128,2]
[364359066,1749079843812,-1091.90353123,0.00021521,5]
[364359068,1749079843822,-1027.47,0.00021552,2]
[364359070,1749079843833,-342.56,0.00021552,2]
[364359072,1749079843843,-1419.71,0.00021552,2]
[364359074,1749079843852,-497.98,0.00021552,2]
[364359076,1749079843861,-440.0,0.00021552,2]
[364359078,1749079843871,-440.0,0.00021552,2]
[364359080,1749079843881,-1015.28,0.00021552,2]
[364359082,1749079843890,-440.0,0.00021553,2]
[364359084,1749079843899,-627.79,0.00021553,2]
[364359086,1749079843909,-1317.35,0.00021553,2]
[364359088,1749079843918,-965.7,0.00021553,2]
[364359090,1749079843927,-575.21,0.00021553,2]
[364359092,1749079843937,-440.0,0.00021553,2]
[364359094,1749079843946,-526.9,0.00021553,2]
[364359095,1749079843955,-506.35,0.00021553,2]
[364359098,1749079843965,-440.0,0.00021554,2]
[364359099,1749079843975,-151.0,0.000217,3]
[364359101,1749079843984,-151.0,0.00021762,2]
[364359104,1749079843993,-1091.90353123,0.00021762,5]
[364359106,1749079844002,-167.39271525,0.00021767,2]
[364359107,1749079844012,-1027.47,0.00021826,2]
[364359110,1749079844022,-1419.71,0.00021826,2]
[364359112,1749079844031,-497.98,0.00021826,2]
[364359113,1749079844040,-440.0,0.00021826,2]
[364359116,1749079844051,-440.0,0.00021826,2]
[364359118,1749079844060,-1015.28,0.00021826,2]
[364359120,1749079844071,-440.0,0.00021827,2]
[364359122,1749079844080,-627.79,0.00021827,2]
[364359124,1749079844089,-1317.35,0.00021827,2]
[364359126,1749079844099,-965.7,0.00021827,2]
[364359128,1749079844108,-575.21,0.00021827,2]
[364359130,1749079844117,-440.0,0.00021827,2]
[364359131,1749079844127,-526.9,0.00021827,2]
[364359134,1749079844138,-506.35,0.00021827,2]
[364359136,1749079844148,-440.0,0.00021828,2]
[364359138,1749079844158,-160.0,0.00021916,2]
[364359140,1749079844169,-500.0,0.00021916,2]
[364359141,1749079844179,-200.0,0.00021917,2]
[364359144,1749079844188,-500.0,0.00021917,2]
[364359146,1749079844198,-500.0,0.00021917,2]
[364359148,1749079844207,-500.0,0.00021917,2]
[364359150,1749079844217,-500.0,0.00021917,2]
[364359152,1749079844226,-500.0,0.00021917,2]
[364359154,1749079844236,-500.0,0.00021917,2]
[364359156,1749079844245,-500.0,0.00021917,2]
[364359158,1749079844254,-570.15,0.00021917,2]
[364359160,1749079844263,-188.0,0.00022,2]
[364359162,1749079844272,-171.0,0.00022,2]
[364359164,1749079844282,-1091.90353123,0.00022003,6]
[364359165,1749079844291,-151.0,0.0002206,7]
[364359167,1749079844300,-1027.47,0.000221,2]
[364359170,1749079844310,-1419.71,0.000221,2]
[364359172,1749079844319,-497.98,0.000221,2]
[364359174,1749079844328,-440.0,0.000221,2]
[364359176,1749079844338,-440.0,0.000221,2]
[364359178,1749079844348,-1015.28,0.000221,2]
[364359180,1749079844357,-440.0,0.00022101,2]
[364359182,1749079844366,-627.79,0.00022101,2]
[364359184,1749079844376,-1317.35,0.00022101,2]
[364359186,1749079844385,-965.7,0.00022101,2]
[364359188,1749079844394,-575.21,0.00022101,2]
[364359190,1749079844404,-440.0,0.00022101,2]
[364359192,1749079844413,-526.9,0.00022101,2]
[364359194,1749079844422,-506.35,0.00022101,2]
[364359196,1749079844432,-440.0,0.00022102,2]
[364359198,1749079844442,-1238.32,0.000222,7]
[364359200,1749079844452,-910.39,0.000222,7]
[364359202,1749079844461,-1091.90353123,0.00022245,6]
[364359204,1749079844471,-1300.0,0.0002226,2]
[364359206,1749079844481,-151.0,0.000223,6]
[364359208,1749079844490,-1027.47,0.00022374,2]
[364359210,1749079844500,-1419.71,0.00022374,2]
[364359212,1749079844510,-497.98,0.00022374,2]
[364359214,1749079844519,-440.0,0.00022374,2]
[364359216,1749079844529,-440.0,0.00022374,2]
[364359218,1749079844540,-1015.28,0.00022374,2]
[364359219,1749079844551,-440.0,0.00022375,2]
[364359222,1749079844561,-627.79,0.00022375,2]
[364359224,1749079844571,-1317.35,0.00022375,2]
[364359225,1749079844580,-965.7,0.00022375,2]
[364359228,1749079844590,-575.21,0.00022375,2]
[364359230,1749079844600,-325.6,0.00022375,2]
[364359232,1749079844609,-526.9,0.00022375,2]
[364359234,1749079844619,-506.35,0.00022375,2]
[364359235,1749079844628,-440.0,0.00022376,2]
[364359237,1749079844638,-500.0,0.00022465,2]
[364359240,1749079844649,-1091.90353123,0.00022486,7]
[364359242,1749079844659,-250.0,0.00022555,2]
[364359243,1749079844668,-207.4,0.0002256,2]
[364359245,1749079844679,-500.0,0.0002256,2]
[364359247,1749079844689,-500.0,0.0002256,2]
[364359249,1749079844698,-500.0,0.0002256,2]
[364359251,1749079844708,-500.0,0.0002256,2]
[364359253,1749079844717,-500.0,0.0002256,2]
[364359256,1749079844727,-500.0,0.0002256,2]
[364359258,1749079844736,-500.0,0.0002256,2]
[364359260,1749079844746,-500.0,0.0002256,2]
[364359261,1749079844758,-500.0,0.0002256,2]
[364359263,1749079844768,-500.0,0.0002256,2]
[364359265,1749079844777,-500.0,0.0002256,2]
[364359267,1749079844788,-500.0,0.0002256,2]
[364359269,1749079844798,-500.0,0.0002256,2]
[364359271,1749079844807,-500.0,0.0002256,2]
[364359273,1749079844816,-500.0,0.0002256,2]
[364359275,1749079844826,-500.0,0.0002256,2]
[364359277,1749079844837,-500.0,0.0002256,2]
[364359279,1749079844847,-500.0,0.0002256,2]
[364359281,1749079844857,-500.0,0.0002256,2]
[364359283,1749079844867,-500.0,0.0002256,2]
[364359285,1749079844877,-500.0,0.0002256,2]
[364359287,1749079844886,-500.0,0.0002256,2]
[364359289,1749079844896,-5000.0,0.0002256,2]
[364359291,1749079844905,-500.0,0.0002256,2]
[364359293,1749079844915,-500.0,0.0002256,2]
[364359295,1749079844925,-500.0,0.0002256,2]
[364359297,1749079844935,-500.0,0.0002256,2]
[364359299,1749079844944,-500.0,0.0002256,2]
[364359301,1749079844954,-500.0,0.0002256,2]
[364359303,1749079844963,-500.0,0.0002256,2]
[364359305,1749079844973,-500.0,0.0002256,2]
[364359307,1749079844983,-240.51169097,0.00022629,2]
[364359309,1749079844993,-1027.47,0.00022648,2]
[364359311,1749079845003,-1419.71,0.00022648,2]
[364359314,1749079845013,-497.98,0.00022648,2]
[364359316,1749079845023,-193.9,0.00022648,2]
[364359318,1749079845032,-338.55234137,0.00022648,2]
[364359319,1749079845042,-1015.28,0.00022648,2]
[364359333,1749079845164,-440.0,0.00022649,2]
[364359335,1749079845174,-627.79,0.00022649,2]
[364359337,1749079845184,-1317.35,0.00022649,2]
[364359339,1749079845194,-965.7,0.00022649,2]
[364359341,1749079845204,-575.21,0.00022649,2]
[364359343,1749079845213,-526.9,0.00022649,2]
[364359345,1749079845223,-506.35,0.00022649,2]
[364359347,1749079845232,-440.0,0.0002265,2]
[364359349,1749079845242,-153.0,0.00022658,2]
[364359351,1749079845251,-158.575084,0.00022658,2]
[364359353,1749079845260,-153.0,0.00022658,2]
[364359355,1749079845269,-317.150168,0.00022658,2]
[364359357,1749079845279,-429.6268367,0.00022658,2]
[364359359,1749079845288,-153.0,0.00022658,2]
[364359361,1749079845298,-153.0,0.00022658,2]
[364359364,1749079845307,-153.0,0.00022658,2]
[364359366,1749079845316,-729.1633396,0.00022658,2]
[364359368,1749079845326,-158.575084,0.00022658,2]
[364359370,1749079845335,-270.8437063,0.00022658,2]
[364359372,1749079845345,-34152.15,0.000227,2]
[364359374,1749079845354,-1091.90353123,0.00022728,7]
[364359376,1749079845364,-1027.47,0.00022922,2]
[364359378,1749079845373,-1419.71,0.00022922,2]
[364359380,1749079845383,-497.98,0.00022922,2]
[364359382,1749079845393,-1015.28,0.00022922,2]
[364359384,1749079845403,-440.0,0.00022923,2]
[364359386,1749079845413,-627.79,0.00022923,2]
[364359388,1749079845422,-1317.35,0.00022923,2]
[364359390,1749079845431,-965.7,0.00022923,2]
[364359392,1749079845440,-575.21,0.00022923,2]
[364359394,1749079845449,-526.9,0.00022923,2]
[364359396,1749079845459,-506.35,0.00022923,2]
[364359398,1749079845468,-440.0,0.00022924,2]
[364359400,1749079845478,-153.0,0.00022932,2]
[364359402,1749079845487,-572.7197194,0.00022932,2]
[364359404,1749079845496,-153.0,0.00022932,2]
[364359406,1749079845505,-572.7197194,0.00022932,2]
[364359408,1749079845514,-153.0,0.00022932,2]
[364359410,1749079845524,-572.7197194,0.00022932,2]
[364359412,1749079845533,-153.0,0.00022932,2]
[364359414,1749079845542,-153.0,0.00022932,2]
[364359416,1749079845551,-153.0,0.00022932,2]
[364359418,1749079845560,-153.0,0.00022932,2]
[364359420,1749079845569,-153.0,0.00022932,2]
[364359422,1749079845579,-153.0,0.00022932,2]
[364359424,1749079845589,-153.0,0.00022932,2]
[364359426,1749079845598,-153.0,0.00022932,2]
[364359428,1749079845608,-162.96162869,0.00022932,2]
[364359430,1749079845617,-167.39271525,0.00022942,2]
[364359432,1749079845627,-1091.90353123,0.00022969,8]
[364359434,1749079845636,-12500.0,0.00022982,3]
[364359436,1749079845645,-158.575084,0.00022986,2]
[364359438,1749079845655,-390.5657552,0.00022986,2]
[364359440,1749079845664,-572.7197194,0.00022986,2]
[364359442,1749079845674,-490.3386569,0.00022986,2]
[364359444,1749079845683,-306.0,0.00022986,2]
[364359446,1749079845693,-353.057519,0.00022986,2]
[364359448,1749079845702,-153.0,0.00022986,2]
[364359450,1749079845711,-572.7197194,0.00022986,2]
[364359452,1749079845720,-212.90465545,0.0002299,3]
[364359454,1749079845730,-316.70111321,0.0002299,2]
[364359456,1749079845739,-842.5625,0.0002299,3]
[364359458,1749079845750,-12500.0,0.00022991,3]
[364359460,1749079845761,-385.01081239,0.00022999,2]
[364359462,1749079845771,-225.0,0.00022999,2]
[364359464,1749079845781,-292.83291929,0.00022999,2]
[364359466,1749079845790,-167.61938942,0.00022999,2]
[364359468,1749079845800,-12500.0,0.00023,3]
[364359470,1749079845810,-423.69433488,0.00023,3]
[364359472,1749079845819,-160.0,0.00023,3]
[364359473,1749079845830,-160.0,0.00023,3]
[364359475,1749079845840,-229.45591648,0.00023,3]
[364359477,1749079845849,-160.0,0.00023,3]
[364359480,1749079845860,-160.0,0.00023,3]
[364359482,1749079845871,-151.0,0.00023,5]
[364359483,1749079845880,-8272.27884438,0.00023,2]
[364359505,1749079846065,-440.0,0.00017169,2]
[364359507,1749079846076,-440.0,0.00017443,2]
[364359509,1749079846085,-440.0,0.00017717,2]
[364359511,1749079846095,-440.0,0.00017991,2]
[364359513,1749079846104,-332.76200485,0.00018265,2]
[364359515,1749079846114,-212.90465545,0.00019866,2]
[364359517,1749079846123,-26859.19109601,0.00023,2]
[364359519,1749079846134,-12756.83772187,0.00023,2]
[364359521,1749079846145,-12018.46614389,0.00023,2]
[364359558,1749079846578,-440.0,0.00017168,2]
[364359559,1749079846587,-440.0,0.00017442,2]
[364359560,1749079846597,-440.0,0.00017716,2]
[364359561,1749079846606,-440.0,0.0001799,2]
[364359563,1749079846617,-17439.2435056,0.00023,2]
[364359565,1749079846626,-248.29768602,0.00023,2]
[364359567,1749079846635,-5396.29766591,0.00023,2]
[364359618,1749079847130,-17.38428639,0.00023,2]
[364359621,1749079847147,-440.0,0.00018264,2]
[364359623,1749079847157,-208448.49115355,0.00023,2]
[364359625,1749079847167,-3023.01456812,0.00023,2]
[364359627,1749079847177,-151.0,0.00023,7]
[364359629,1749079847186,-5000.0,0.00023108,2]
[364359631,1749079847195,-1419.71,0.00023196,2]
[364359633,1749079847204,-497.98,0.00023196,2]
[364359635,1749079847214,-1015.28,0.00023196,2]
[364359637,1749079847223,-627.79,0.00023197,2]
[364359639,1749079847232,-1317.35,0.00023197,2]